[Event "Mistrovství Čech mládeže 2023 - HD12"]
[Site "Harrachov, Czech Republic"]
[Date "2023.10.23"]
[Round "3.4"]
[White "Kůsová, Nikola"]
[Black "Kubát, Jonáš"]
[Result "0-1"]
[TimeControl "90m + 30s"]
[WhiteElo "1324"]
[BlackElo "1423"]

1. e4 {[%clk 01:30:57]} {[%emt 00:00:01]} c6 {[%clk 01:30:50]} {[%emt
00:00:10]} 2. d4 {[%clk 01:31:21]} {[%emt 00:00:07]} d5 {[%clk 01:31:15]}
{[%emt 00:00:05]} 3. f3 {[%clk 01:31:43]} {[%emt 00:00:08]} e6 {[%clk
01:30:25]} {[%emt 00:01:20]} 4. Nc3 {[%clk 01:31:41]} {[%emt 00:00:32]} c5
{[%clk 01:30:26]} {[%emt 00:00:29]} 5. Nge2 {[%clk 01:28:25]} {[%emt 00:03:45]}
Nc6 {[%clk 01:30:10]} {[%emt 00:00:46]} 6. Bf4 {[%clk 01:23:39]} {[%emt
00:05:16]} Qb6 {[%clk 01:27:09]} {[%emt 00:03:31]} 7. Na4 {[%clk 01:21:08]}
{[%emt 00:03:03]} Qa5+ {[%clk 01:27:27]} {[%emt 00:00:11]} 8. c3 {[%clk
01:18:59]} {[%emt 00:02:39]} e5 {[%clk 01:24:53]} {[%emt 00:03:04]} 9. exd5
{[%clk 01:11:28]} {[%emt 00:08:00]} cxd4 {[%clk 01:20:04]} {[%emt 00:05:19]} 10.
dxc6 {[%clk 01:09:56]} {[%emt 00:02:03]} dxc3 {[%clk 01:17:23]} {[%emt
00:03:11]} 11. Naxc3 {[%clk 01:09:22]} {[%emt 00:01:04]} exf4 {[%clk 01:17:19]}
{[%emt 00:00:34]} 12. cxb7 {[%clk 01:07:48]} {[%emt 00:02:04]} Bxb7 {[%clk
01:16:45]} {[%emt 00:01:03]} 13. Nxf4 {[%clk 01:06:56]} {[%emt 00:01:22]} Bb4
{[%clk 01:14:14]} {[%emt 00:03:02]} 14. Nfe2 {[%clk 00:57:32]} {[%emt
00:09:54]} Nf6 {[%clk 01:12:07]} {[%emt 00:02:37]} 15. a3 {[%clk 00:53:07]}
{[%emt 00:04:56]} Rd8 {[%clk 01:11:44]} {[%emt 00:00:51]} 16. Qc1 {[%clk
00:46:09]} {[%emt 00:07:28]} Be7 {[%clk 01:09:40]} {[%emt 00:02:34]} 17. Nf4
{[%clk 00:43:26]} {[%emt 00:03:13]} O-O {[%clk 01:06:13]} {[%emt 00:03:57]} 18.
Be2 {[%clk 00:43:25]} {[%emt 00:00:32]} Qb6 {[%clk 01:04:06]} {[%emt 00:02:37]}
19. Qc2 {[%clk 00:36:38]} {[%emt 00:07:18]} Bc5 {[%clk 00:56:39]} {[%emt
00:07:56]} 20. Nd3 {[%clk 00:33:56]} {[%emt 00:03:11]} Be3 {[%clk 00:52:14]}
{[%emt 00:04:55]} 21. Rd1 {[%clk 00:32:02]} {[%emt 00:02:24]} Rc8 {[%clk
00:46:42]} {[%emt 00:06:03]} 22. Qb1 {[%clk 00:28:45]} {[%emt 00:03:45]} Rfd8
{[%clk 00:41:38]} {[%emt 00:05:36]} 23. Nb4 {[%clk 00:25:41]} {[%emt 00:03:33]}
a5 {[%clk 00:33:19]} {[%emt 00:08:50]} 24. Nd3 {[%clk 00:23:15]} {[%emt
00:02:56]} Nd5 {[%clk 00:31:58]} {[%emt 00:01:51]} 25. Nxd5 {[%clk 00:20:27]}
{[%emt 00:03:18]} Bxd5 {[%clk 00:31:55]} {[%emt 00:00:33]} 26. b4 {[%clk
00:20:16]} {[%emt 00:00:41]} a4 {[%clk 00:31:23]} {[%emt 00:01:01]} 27. Ne5
{[%clk 00:16:54]} {[%emt 00:03:52]} Rc3 {[%clk 00:28:40]} {[%emt 00:03:13]} 28.
Qb2 {[%clk 00:15:17]} {[%emt 00:02:08]} Bd4 {[%clk 00:27:01]} {[%emt 00:02:09]}
29. Ng4 {[%clk 00:13:46]} {[%emt 00:02:01]} Rc4 {[%clk 00:26:13]} {[%emt
00:01:17]} 30. Qb1 {[%clk 00:12:25]} {[%emt 00:01:52]} Bc3+ {[%clk 00:24:58]}
{[%emt 00:01:43]} 31. Kf1 {[%clk 00:11:40]} {[%emt 00:01:15]} Rd4 {[%clk
00:22:51]} {[%emt 00:02:38]} 32. Rxd4 {[%clk 00:08:30]} {[%emt 00:03:40]} Qxd4
{[%clk 00:22:12]} {[%emt 00:01:10]} 33. Qd3 {[%clk 00:07:56]} {[%emt 00:01:01]}
Qxd3 {[%clk 00:22:20]} {[%emt 00:00:24]} 34. Bxd3 {[%clk 00:08:20]} {[%emt
00:00:06]} Bxf3 {[%clk 00:20:51]} {[%emt 00:01:59]} 35. Be2 {[%clk 00:07:12]}
{[%emt 00:01:38]} Bxe2+ {[%clk 00:20:25]} {[%emt 00:00:57]} 36. Kxe2 {[%clk
00:07:30]} {[%emt 00:00:12]} Bb2 {[%clk 00:20:30]} {[%emt 00:00:24]} 37. Rb1
{[%clk 00:06:48]} {[%emt 00:01:12]} Bxa3 {[%clk 00:20:18]} {[%emt 00:00:42]} 38.
Ne3 {[%clk 00:06:54]} {[%emt 00:00:24]} Rb8 {[%clk 00:18:15]} {[%emt 00:02:34]}
39. Nc2 {[%clk 00:07:12]} {[%emt 00:00:12]} Bxb4 {[%clk 00:16:47]} {[%emt
00:01:58]} 40. Rxb4 {[%clk 00:07:08]} {[%emt 00:00:33]} Rxb4 {[%clk 00:16:11]}
{[%emt 00:01:06]} 41. Nxb4 {[%clk 00:07:29]} {[%emt 00:00:09]} f5 {[%clk
00:15:15]} {[%emt 00:01:26]} 42. Kd2 {[%clk 00:07:33]} {[%emt 00:00:26]} Kf7
{[%clk 00:15:25]} {[%emt 00:00:21]} 43. Kc2 {[%clk 00:06:55]} {[%emt 00:01:08]}
Ke6 {[%clk 00:15:14]} {[%emt 00:00:40]} 44. Nd3 {[%clk 00:06:11]} {[%emt
00:01:14]} Kd5 {[%clk 00:14:22]} {[%emt 00:01:23]} 45. Kc3 {[%clk 00:05:49]}
{[%emt 00:00:53]} Ke4 {[%clk 00:13:20]} {[%emt 00:01:31]} 46. Nc5+ {[%clk
00:03:56]} {[%emt 00:02:23]} Ke3 {[%clk 00:13:20]} {[%emt 00:00:30]} 47. Nxa4
{[%clk 00:02:15]} {[%emt 00:02:11]} Kf2 {[%clk 00:13:21]} {[%emt 00:00:29]} 48.
g3 {[%clk 00:02:03]} {[%emt 00:00:42]} Kg2 {[%clk 00:13:33]} {[%emt 00:00:18]}
49. Nc5 {[%clk 00:02:15]} {[%emt 00:00:18]} Kxh2 {[%clk 00:13:36]} {[%emt
00:00:26]} 50. Ne6 {[%clk 00:02:12]} {[%emt 00:00:34]} g6 {[%clk 00:13:11]}
{[%emt 00:00:55]} 51. Ng5 {[%clk 00:02:06]} {[%emt 00:00:36]} Kxg3 {[%clk
00:13:16]} {[%emt 00:00:24]} 52. Nxh7 {[%clk 00:02:13]} {[%emt 00:00:23]} f4
{[%clk 00:13:04]} {[%emt 00:00:42]} 53. Ng5 {[%clk 00:01:59]} {[%emt 00:00:44]}
f3 {[%clk 00:13:04]} {[%emt 00:00:30]} 54. Ne4 {[%clk 00:01:44]} {[%emt
00:00:46]} Kg2 {[%clk 00:11:54]} {[%emt 00:01:39]} 0-1

[Event "Mistrovství Čech mládeže 2023 - HD12"]
[Site "Harrachov, Czech Republic"]
[Date "2023.10.23"]
[Round "3.5"]
[White "Rendl, Luboš"]
[Black "Ta, Xuan Nguyen"]
[Result "1-0"]
[TimeControl "90m + 30s"]
[WhiteElo "1420"]
[BlackElo "1252"]

1. d4 {[%clk 01:30:52]} {[%emt 00:00:07]} d5 {[%clk 01:30:35]} {[%emt
00:00:25]} 2. c4 {[%clk 01:30:48]} {[%emt 00:00:35]} e6 {[%clk 01:30:28]}
{[%emt 00:00:37]} 3. Nc3 {[%clk 01:30:59]} {[%emt 00:00:19]} Nf6 {[%clk
01:29:56]} {[%emt 00:01:02]} 4. Nf3 {[%clk 01:29:36]} {[%emt 00:01:53]} c6
{[%clk 01:29:00]} {[%emt 00:01:26]} 5. e3 {[%clk 01:29:16]} {[%emt 00:00:50]}
Be7 {[%clk 01:28:21]} {[%emt 00:01:09]} 6. Bd3 {[%clk 01:27:44]} {[%emt
00:02:01]} dxc4 {[%clk 01:26:51]} {[%emt 00:02:00]} 7. Bxc4 {[%clk 01:28:06]}
{[%emt 00:00:09]} b5 {[%clk 01:27:01]} {[%emt 00:00:19]} 8. Bd3 {[%clk
01:28:18]} {[%emt 00:00:17]} Bb7 {[%clk 01:26:21]} {[%emt 00:01:11]} 9. O-O
{[%clk 01:28:08]} {[%emt 00:00:39]} O-O {[%clk 01:24:37]} {[%emt 00:02:15]} 10.
Qc2 {[%clk 01:26:03]} {[%emt 00:02:30]} Nbd7 {[%clk 01:23:44]} {[%emt
00:01:29]} 11. e4 {[%clk 01:21:56]} {[%emt 00:04:37]} g6 {[%clk 01:15:45]}
{[%emt 00:08:29]} 12. e5 {[%clk 01:15:13]} {[%emt 00:07:11]} Ne8 {[%clk
01:10:49]} {[%emt 00:05:27]} 13. Bh6 {[%clk 01:14:20]} {[%emt 00:01:23]} Ng7
{[%clk 01:10:57]} {[%emt 00:00:22]} 14. Be4 {[%clk 01:12:35]} {[%emt 00:02:15]}
a6 {[%clk 01:09:38]} {[%emt 00:01:49]} 15. Nd2 {[%clk 01:05:28]} {[%emt
00:07:35]} Re8 {[%clk 00:55:59]} {[%emt 00:14:12]} 16. Qd3 {[%clk 00:50:17]}
{[%emt 00:15:33]} f5 {[%clk 00:52:14]} {[%emt 00:04:22]} 17. exf6 {[%clk
00:47:00]} {[%emt 00:03:47]} Bxf6 {[%clk 00:52:11]} {[%emt 00:00:33]} 18. Nb3
{[%clk 00:40:14]} {[%emt 00:07:16]} Nf5 {[%clk 00:45:26]} {[%emt 00:07:15]} 19.
Be3 {[%clk 00:36:54]} {[%emt 00:03:48]} Qc7 {[%clk 00:40:05]} {[%emt 00:05:53]}
20. Rac1 {[%clk 00:31:49]} {[%emt 00:05:35]} Rad8 {[%clk 00:38:58]} {[%emt
00:01:38]} 21. Qe2 {[%clk 00:28:11]} {[%emt 00:04:07]} Nb6 {[%clk 00:35:35]}
{[%emt 00:03:54]} 22. Rfd1 {[%clk 00:27:15]} {[%emt 00:01:25]} Nd5 {[%clk
00:32:02]} {[%emt 00:04:03]} 23. Nxd5 {[%clk 00:24:07]} {[%emt 00:03:38]} Rxd5
{[%clk 00:29:33]} {[%emt 00:02:59]} 24. Bxd5 {[%clk 00:22:30]} {[%emt
00:02:08]} exd5 {[%clk 00:29:49]} {[%emt 00:00:14]} 25. Qf3 {[%clk 00:21:49]}
{[%emt 00:01:08]} Qc8 {[%clk 00:27:19]} {[%emt 00:03:03]} 26. h3 {[%clk
00:18:34]} {[%emt 00:03:44]} Bg7 {[%clk 00:26:23]} {[%emt 00:01:26]} 27. Rc2
{[%clk 00:16:59]} {[%emt 00:02:05]} Nd6 {[%clk 00:20:16]} {[%emt 00:06:37]} 28.
Nc5 {[%clk 00:15:45]} {[%emt 00:01:44]} Rf8 {[%clk 00:19:35]} {[%emt 00:01:11]}
29. Qe2 {[%clk 00:15:12]} {[%emt 00:00:57]} Rf7 {[%clk 00:16:14]} {[%emt
00:03:57]} 30. Qd3 {[%clk 00:15:04]} {[%emt 00:00:37]} Bf8 {[%clk 00:15:57]}
{[%emt 00:00:48]} 31. b3 {[%clk 00:14:19]} {[%emt 00:01:15]} Qc7 {[%clk
00:15:19]} {[%emt 00:01:09]} 32. Re2 {[%clk 00:11:13]} {[%emt 00:03:32]} Bc8
{[%clk 00:15:11]} {[%emt 00:00:41]} 33. Bg5 {[%clk 00:09:17]} {[%emt 00:02:26]}
Bf5 {[%clk 00:14:33]} {[%emt 00:01:09]} 34. Qe3 {[%clk 00:08:55]} {[%emt
00:00:47]} Ne4 {[%clk 00:11:44]} {[%emt 00:03:23]} 35. Nxe4 {[%clk 00:08:07]}
{[%emt 00:01:18]} dxe4 {[%clk 00:10:07]} {[%emt 00:02:07]} 36. Bf4 {[%clk
00:08:09]} {[%emt 00:00:27]} Bd6 {[%clk 00:09:54]} {[%emt 00:00:44]} 37. Bxd6
{[%clk 00:08:31]} {[%emt 00:00:09]} Qxd6 {[%clk 00:10:13]} {[%emt 00:00:10]} 38.
Rc2 {[%clk 00:07:46]} {[%emt 00:01:15]} h5 {[%clk 00:09:22]} {[%emt 00:01:22]}
39. Rc5 {[%clk 00:07:54]} {[%emt 00:00:20]} Kg7 {[%clk 00:06:41]} {[%emt
00:03:12]} 40. Qc3 {[%clk 00:07:56]} {[%emt 00:00:28]} Rf6 {[%clk 00:05:37]}
{[%emt 00:01:35]} 41. Rc1 {[%clk 00:07:53]} {[%emt 00:00:32]} Bd7 {[%clk
00:05:21]} {[%emt 00:00:47]} 42. Re5 {[%clk 00:05:51]} {[%emt 00:02:29]} Rf4
{[%clk 00:04:09]} {[%emt 00:01:45]} 43. Qc5 {[%clk 00:05:21]} {[%emt 00:00:58]}
Qf6 {[%clk 00:03:35]} {[%emt 00:01:05]} 44. Re7+ {[%clk 00:04:40]} {[%emt
00:01:10]} Kh6 {[%clk 00:03:02]} {[%emt 00:01:05]} 45. Qe5 {[%clk 00:03:48]}
{[%emt 00:01:21]} Qxe5 {[%emt 00:02:50]} 46. dxe5 {[%clk 00:03:55]} {[%emt
00:00:20]} Bf5 {[%clk 00:00:48]} {[%emt 00:00:28]} 47. Rxc6 {[%clk 00:03:47]}
{[%emt 00:00:38]} Kg5 {[%clk 00:00:54]} {[%emt 00:00:24]} 48. Rxa6 {[%clk
00:02:53]} {[%emt 00:01:24]} e3 {[%clk 00:00:43]} {[%emt 00:00:41]} 49. fxe3
{[%clk 00:02:49]} {[%emt 00:00:34]} Re4 {[%clk 00:00:56]} {[%emt 00:00:17]} 50.
Kf2 {[%clk 00:02:55]} {[%emt 00:00:19]} h4 {[%clk 00:00:50]} {[%emt 00:00:41]}
51. Rb6 {[%clk 00:02:56]} {[%emt 00:00:26]} Rb4 {[%clk 00:00:59]} {[%emt
00:00:22]} 52. Rf7 {[%clk 00:02:27]} {[%emt 00:00:55]} Re4 {[%clk 00:00:56]}
{[%emt 00:00:38]} 53. Re7 {[%clk 00:02:38]} {[%emt 00:00:19]} Kh5 {[%clk
00:00:47]} {[%emt 00:00:39]} 54. Rxb5 {[%clk 00:02:34]} {[%emt 00:00:35]} g5
{[%clk 00:01:03]} {[%emt 00:00:13]} 55. a4 {[%clk 00:02:38]} {[%emt 00:00:27]}
g4 {[%clk 00:01:15]} {[%emt 00:00:17]} 56. hxg4+ {[%clk 00:02:31]} {[%emt
00:00:37]} Kxg4 {[%clk 00:01:04]} {[%emt 00:00:41]} 57. a5 {[%clk 00:02:14]}
{[%emt 00:00:48]} h3 {[%clk 00:01:16]} {[%emt 00:00:17]} 58. gxh3+ {[%clk
00:02:31]} {[%emt 00:00:13]} Kxh3 {[%clk 00:01:26]} {[%emt 00:00:20]} 59. a6
{[%clk 00:02:35]} {[%emt 00:00:25]} Rg4 {[%clk 00:01:47]} {[%emt 00:00:09]} 60.
Ke1 {[%clk 00:01:59]} {[%emt 00:01:01]} Rg1+ {[%clk 00:01:15]} {[%emt
00:01:07]} 61. Kd2 {[%clk 00:02:20]} {[%emt 00:00:09]} Rg2+ {[%clk 00:01:26]}
{[%emt 00:00:19]} 62. Kc3 {[%clk 00:02:40]} {[%emt 00:00:08]} Rc2+ {[%clk
00:01:35]} {[%emt 00:00:22]} 63. Kb4 {[%clk 00:03:06]} {[%emt 00:00:05]} Bd3
{[%clk 00:01:17]} {[%emt 00:00:48]} 64. a7 {[%clk 00:03:11]} {[%emt 00:00:25]}
Bxb5 {[%clk 00:01:01]} {[%emt 00:00:46]} 65. Kxb5 {[%clk 00:03:36]} {[%emt
00:00:05]} Rb2 {[%clk 00:01:11]} {[%emt 00:00:20]} 66. a8=Q {[%clk 00:03:50]}
{[%emt 00:00:16]} Rxb3+ {[%clk 00:01:32]} {[%emt 00:00:09]} 67. Ka4 {[%clk
00:04:13]} {[%emt 00:00:05]} Rxe3 {[%clk 00:01:52]} {[%emt 00:00:13]} 68. Rg7
{[%clk 00:04:09]} {[%emt 00:00:33]} Kh2 {[%clk 00:01:46]} {[%emt 00:00:37]} 69.
Qg2# {[%clk 00:04:26]} {[%emt 00:00:12]} 1-0

[Event "Mistrovství Čech mládeže 2023 - HD12"]
[Site "Harrachov, Czech Republic"]
[Date "2023.10.23"]
[Round "3.6"]
[White "Remizov, Artem"]
[Black "Ježek, Jiří"]
[Result "1-0"]
[TimeControl "90m + 30s"]
[WhiteElo "1259"]
[BlackElo "1392"]

1. e4 {[%clk 01:30:58]} {[%emt 00:00:01]} c5 {[%clk 01:30:38]} {[%emt
00:00:23]} 2. Nf3 {[%clk 01:31:20]} {[%emt 00:00:07]} g6 {[%clk 01:30:34]}
{[%emt 00:00:33]} 3. Nc3 {[%clk 01:31:41]} {[%emt 00:00:10]} Bg7 {[%clk
01:30:27]} {[%emt 00:00:38]} 4. Bc4 {[%clk 01:31:39]} {[%emt 00:00:31]} Nf6
{[%clk 01:23:30]} {[%emt 00:07:27]} 5. d3 {[%clk 01:31:29]} {[%emt 00:00:40]}
Nc6 {[%clk 01:20:17]} {[%emt 00:03:43]} 6. Be3 {[%clk 01:31:16]} {[%emt
00:00:42]} d6 {[%clk 01:18:47]} {[%emt 00:02:01]} 7. Qe2 {[%clk 01:27:02]}
{[%emt 00:04:45]} O-O {[%clk 01:05:55]} {[%emt 00:13:22]} 8. O-O-O {[%clk
01:26:47]} {[%emt 00:00:45]} Bg4 {[%clk 00:55:08]} {[%emt 00:11:16]} 9. h3
{[%clk 01:25:51]} {[%emt 00:01:26]} Bxf3 {[%clk 00:55:09]} {[%emt 00:00:29]} 10.
gxf3 {[%clk 01:24:01]} {[%emt 00:02:21]} a6 {[%clk 00:48:36]} {[%emt 00:07:03]}
11. Nd5 {[%clk 01:21:59]} {[%emt 00:02:32]} Nxd5 {[%clk 00:46:20]} {[%emt
00:02:45]} 12. Bxd5 {[%clk 01:22:00]} {[%emt 00:00:29]} Qb6 {[%clk 00:43:18]}
{[%emt 00:03:31]} 13. c3 {[%clk 01:20:22]} {[%emt 00:02:09]} a5 {[%clk
00:38:36]} {[%emt 00:05:13]} 14. Qd2 {[%clk 01:19:46]} {[%emt 00:01:05]} a4
{[%clk 00:36:36]} {[%emt 00:02:30]} 15. Bh6 {[%clk 01:15:15]} {[%emt 00:05:01]}
Qa5 {[%clk 00:27:45]} {[%emt 00:09:21]} 16. Bxg7 {[%clk 01:15:04]} {[%emt
00:00:41]} Kxg7 {[%clk 00:28:11]} {[%emt 00:00:05]} 17. h4 {[%clk 01:15:06]}
{[%emt 00:00:28]} h5 {[%clk 00:26:40]} {[%emt 00:02:01]} 18. Rdg1 {[%clk
01:13:44]} {[%emt 00:01:51]} e6 {[%clk 00:20:01]} {[%emt 00:07:09]} 19. Bxc6
{[%clk 01:13:57]} {[%emt 00:00:16]} bxc6 {[%clk 00:20:21]} {[%emt 00:00:11]} 20.
Kc2 {[%clk 01:13:25]} {[%emt 00:01:02]} Rab8 {[%clk 00:12:54]} {[%emt
00:07:58]} 21. Qg5 {[%clk 01:11:45]} {[%emt 00:02:09]} Qb6 {[%emt 00:05:48]} 22.
Rb1 {[%emt 00:04:05]} c4 {[%emt 00:05:01]} 23. d4 {[%clk 01:07:19]} {[%emt
00:00:03]} a3 {[%clk 00:03:33]} {[%emt 00:01:21]} 24. Qc1 {[%clk 01:01:22]}
{[%emt 00:06:27]} axb2 {[%emt 00:01:26]} 25. Rxb2 Qa5 26. Qa1 Qa4+ 27. Kd2
Rxb2+ 28. Qxb2 Ra8 29. Ra1 Qa3 30. Qxa3 Rxa3 31. Kc2 Kf6 32. Kb2 Ra7 {[%clk
00:02:37]} 33. Rg1 1-0

[Event "Mistrovství Čech mládeže 2023 - HD12"]
[Site "Harrachov, Czech Republic"]
[Date "2023.10.23"]
[Round "3.7"]
[White "Zika, Miroslav"]
[Black "Gernert, Tomáš"]
[Result "1-0"]
[TimeControl "90m + 30s"]
[WhiteElo "1199"]
[BlackElo "1389"]

1. e4 {[%clk 01:30:57]} {[%emt 00:00:02]} c5 {[%clk 01:30:55]} {[%emt
00:00:06]} 2. Nf3 {[%clk 01:31:22]} {[%emt 00:00:04]} Nc6 {[%clk 01:31:21]}
{[%emt 00:00:05]} 3. d4 {[%clk 01:31:44]} {[%emt 00:00:08]} cxd4 {[%clk
01:31:46]} {[%emt 00:00:04]} 4. Nxd4 {[%clk 01:32:06]} {[%emt 00:00:08]} g6
{[%clk 01:32:12]} {[%emt 00:00:04]} 5. c4 {[%clk 01:32:15]} {[%emt 00:00:21]}
Bg7 {[%clk 01:32:30]} {[%emt 00:00:12]} 6. Be3 {[%clk 01:32:28]} {[%emt
00:00:17]} Nf6 {[%clk 01:31:50]} {[%emt 00:01:10]} 7. Nc3 {[%clk 01:32:35]}
{[%emt 00:00:24]} d6 {[%clk 01:32:13]} {[%emt 00:00:07]} 8. Qd2 {[%clk
01:32:33]} {[%emt 00:00:31]} Ng4 {[%clk 01:31:43]} {[%emt 00:01:00]} 9. Be2
{[%clk 01:32:15]} {[%emt 00:00:48]} Nxe3 {[%clk 01:32:02]} {[%emt 00:00:11]} 10.
fxe3 {[%clk 01:32:17]} {[%emt 00:00:27]} O-O {[%clk 01:30:14]} {[%emt
00:02:20]} 11. O-O {[%clk 01:32:24]} {[%emt 00:00:22]} Ne5 {[%clk 01:25:25]}
{[%emt 00:05:19]} 12. Rac1 {[%clk 01:30:44]} {[%emt 00:02:10]} b6 {[%clk
01:25:06]} {[%emt 00:00:49]} 13. Kh1 {[%clk 01:25:29]} {[%emt 00:05:45]} Ba6
{[%clk 01:23:36]} {[%emt 00:02:00]} 14. b3 {[%clk 01:25:24]} {[%emt 00:00:35]}
Bb7 {[%clk 01:23:41]} {[%emt 00:00:26]} 15. Bf3 {[%clk 01:20:45]} {[%emt
00:05:07]} Qd7 {[%clk 01:16:16]} {[%emt 00:07:55]} 16. a4 {[%clk 01:18:36]}
{[%emt 00:02:40]} Rac8 {[%clk 01:14:33]} {[%emt 00:02:13]} 17. Ncb5 {[%clk
01:17:14]} {[%emt 00:01:52]} a6 {[%clk 01:14:13]} {[%emt 00:00:50]} 18. Nc3
{[%clk 01:17:34]} {[%emt 00:00:09]} Nxf3 {[%clk 01:09:36]} {[%emt 00:05:08]} 19.
gxf3 {[%clk 01:17:23]} {[%emt 00:00:41]} Qh3 {[%emt 00:00:44]} 20. Qg2 Qxg2+ 21.
Kxg2 Bh6 22. Kf2 Kh8 23. Nd5 Bxd5 24. cxd5 Rc5 25. b4 Rcc8 26. Rc6 Rxc6 {[%clk
01:09:22]} 27. Nxc6 {[%clk 01:17:15]} Rc8 {[%clk 00:57:03]} {[%emt 00:24:53]}
28. Rb1 {[%clk 01:10:18]} Kg7 {[%emt 00:04:33]} 29. b5 a5 {[%clk 00:56:01]} 30.
Rg1 {[%clk 01:09:42]} Kf6 {[%clk 00:53:07]} {[%emt 00:05:49]} 31. f4 {[%clk
01:08:20]} {[%emt 00:01:34]} e5 {[%clk 00:53:05]} {[%emt 00:00:32]} 32. fxe5+
{[%clk 01:01:30]} {[%emt 00:07:18]} dxe5 {[%clk 00:53:07]} {[%emt 00:00:29]} 33.
d6 {[%clk 00:59:58]} {[%emt 00:02:03]} Ke6 {[%clk 00:52:59]} {[%emt 00:00:37]}
34. Rd1 {[%clk 00:59:22]} {[%emt 00:01:05]} Kd7 {[%clk 00:53:19]} {[%emt
00:00:12]} 35. Nxe5+ {[%clk 00:58:48]} {[%emt 00:01:03]} Ke6 {[%clk 00:53:33]}
{[%emt 00:00:16]} 36. d7 {[%clk 00:53:27]} {[%emt 00:05:51]} Rd8 {[%clk
00:53:43]} {[%emt 00:00:20]} 37. Nc4 {[%clk 00:52:18]} {[%emt 00:01:39]} Rxd7
{[%clk 00:53:14]} {[%emt 00:01:00]} 38. Rxd7 {[%emt 00:00:39]} Kxd7 {[%clk
00:53:15]} {[%emt 00:00:26]} 39. Nxb6+ {[%clk 00:49:37]} {[%emt 00:03:04]} Kc7
{[%clk 00:53:11]} {[%emt 00:00:35]} 40. Nc4 {[%clk 00:48:44]} {[%emt 00:01:22]}
Bf8 {[%clk 00:52:21]} {[%emt 00:01:19]} 41. Nxa5 {[%emt 00:03:09]} Bb4 {[%clk
00:52:03]} {[%emt 00:00:26]} 42. Nb3 {[%emt 00:01:40]} Kb6 {[%clk 00:51:34]}
{[%emt 00:00:04]} 43. Kf3 {[%clk 00:46:19]} Bc3 {[%clk 00:50:32]} {[%emt
00:01:57]} 44. Ke2 {[%emt 00:00:53]} g5 {[%clk 00:49:35]} {[%emt 00:01:23]} 45.
h3 {[%clk 00:45:51]} {[%emt 00:00:38]} h5 {[%clk 00:49:57]} {[%emt 00:00:08]}
46. Kd3 {[%clk 00:35:24]} {[%emt 00:10:57]} g4 {[%clk 00:49:40]} {[%emt
00:00:48]} 47. hxg4 {[%clk 00:32:27]} {[%emt 00:03:26]} h4 {[%clk 00:49:36]}
{[%emt 00:00:34]} 48. Ke2 {[%clk 00:30:46]} {[%emt 00:02:12]} h3 {[%clk
00:49:37]} {[%emt 00:00:28]} 49. Kf1 {[%clk 00:30:15]} {[%emt 00:01:01]} h2
{[%clk 00:49:55]} {[%emt 00:00:12]} 50. Kg2 {[%clk 00:30:32]} {[%emt 00:00:13]}
Be5 {[%clk 00:50:17]} {[%emt 00:00:09]} 51. Nd4 {[%clk 00:29:27]} {[%emt
00:01:34]} Bd6 {[%clk 00:47:53]} {[%emt 00:02:54]} 52. Nf3 {[%clk 00:29:08]}
{[%emt 00:00:49]} Ka5 {[%clk 00:47:36]} {[%emt 00:00:47]} 53. Nxh2 {[%clk
00:28:58]} {[%emt 00:00:39]} Kxa4 {[%clk 00:48:03]} {[%emt 00:00:04]} 54. Nf3
{[%clk 00:27:58]} {[%emt 00:01:30]} Kxb5 {[%clk 00:48:23]} {[%emt 00:00:10]} 55.
Nd4+ {[%clk 00:27:29]} {[%emt 00:01:00]} Kc4 {[%clk 00:48:07]} {[%emt
00:00:45]} 56. Nf5 {[%clk 00:27:21]} {[%emt 00:00:38]} Be5 {[%clk 00:48:22]}
{[%emt 00:00:15]} 57. Kf3 {[%clk 00:26:57]} {[%emt 00:00:54]} Kd3 {[%clk
00:48:44]} {[%emt 00:00:08]} 58. g5 {[%clk 00:24:05]} {[%emt 00:03:22]} 1-0

[Event "Mistrovství Čech mládeže 2023 - HD12"]
[Site "Harrachov, Czech Republic"]
[Date "2023.10.23"]
[Round "3.9"]
[White "Kroulík, Štěpán"]
[Black "Štor, Jakub"]
[Result "1-0"]
[TimeControl "90m + 30s"]
[WhiteElo "1454"]
[BlackElo "1275"]

1. e4 {[%clk 01:30:57]} {[%emt 00:00:04]} e5 {[%clk 01:30:56]} {[%emt
00:00:04]} 2. Nf3 {[%clk 01:31:17]} {[%emt 00:00:10]} Nc6 {[%clk 01:31:21]}
{[%emt 00:00:05]} 3. Bb5 {[%clk 01:31:42]} {[%emt 00:00:06]} d6 {[%clk
01:31:09]} {[%emt 00:00:42]} 4. d4 {[%clk 01:31:47]} {[%emt 00:00:24]} exd4
{[%clk 01:27:46]} {[%emt 00:03:53]} 5. Nxd4 {[%clk 01:31:59]} {[%emt 00:00:18]}
Nge7 {[%clk 01:28:08]} {[%emt 00:00:08]} 6. O-O {[%clk 01:31:14]} {[%emt
00:01:16]} g6 {[%clk 01:26:11]} {[%emt 00:02:27]} 7. Bg5 {[%clk 01:30:34]}
{[%emt 00:01:10]} Bd7 {[%clk 01:25:23]} {[%emt 00:01:17]} 8. Bf6 {[%clk
01:29:39]} {[%emt 00:01:24]} Rg8 {[%clk 01:18:02]} {[%emt 00:07:51]} 9. Nc3
{[%clk 01:28:51]} {[%emt 00:01:19]} Nxd4 {[%clk 01:15:29]} {[%emt 00:03:03]} 10.
Qxd4 {[%clk 01:28:03]} {[%emt 00:01:18]} a6 {[%clk 01:13:09]} {[%emt 00:02:51]}
11. Bc4 {[%clk 01:26:08]} {[%emt 00:02:25]} Nc6 {[%clk 01:06:08]} {[%emt
00:07:30]} 12. Bxd8 {[%clk 01:21:28]} {[%emt 00:05:11]} Nxd4 {[%clk 01:06:27]}
{[%emt 00:00:10]} 13. Bxc7 {[%clk 01:20:58]} {[%emt 00:01:00]} Nxc2 {[%clk
01:03:09]} {[%emt 00:03:49]} 14. Nd5 {[%clk 01:20:15]} {[%emt 00:01:13]} Bg7
{[%clk 00:57:35]} {[%emt 00:06:01]} 15. Bxd6 {[%clk 01:19:17]} {[%emt
00:01:31]} Rc8 {[%clk 00:54:44]} {[%emt 00:03:21]} 16. Nc7+ {[%clk 01:15:27]}
{[%emt 00:04:19]} Kd8 {[%clk 00:51:08]} {[%emt 00:05:55]} 17. Bxf7 {[%clk
01:16:40]} {[%emt 00:01:00]} Rh8 {[%clk 00:48:24]} {[%emt 00:03:14]} 18. Nd5
{[%clk 01:15:57]} {[%emt 00:01:13]} Bc6 {[%clk 00:44:40]} {[%emt 00:04:14]} 19.
Rad1 {[%clk 01:14:31]} {[%emt 00:01:55]} Bd4 {[%clk 00:41:22]} {[%emt
00:03:49]} 20. e5 {[%clk 01:11:11]} {[%emt 00:03:50]} Bxd5 {[%clk 00:39:35]}
{[%emt 00:02:17]} 21. Bxd5 {[%clk 01:11:08]} {[%emt 00:00:33]} Kd7 {[%clk
00:37:39]} {[%emt 00:02:27]} 22. Bf3 {[%clk 01:09:52]} {[%emt 00:01:45]} h5
{[%clk 00:37:28]} {[%emt 00:00:42]} 23. Bxb7 {[%clk 01:08:20]} {[%emt
00:02:01]} Rce8 {[%clk 00:36:07]} {[%emt 00:01:47]} 24. Bxa6 {[%clk 01:08:06]}
{[%emt 00:00:48]} Rh7 {[%clk 00:35:21]} {[%emt 00:01:16]} 25. Bb5+ {[%clk
01:08:07]} {[%emt 00:00:29]} Kd8 {[%clk 00:35:34]} {[%emt 00:00:16]} 26. Bxe8
{[%clk 01:07:46]} {[%emt 00:00:53]} Kxe8 {[%clk 00:35:56]} {[%emt 00:00:08]} 27.
Rd2 {[%clk 01:07:41]} {[%emt 00:00:34]} 1-0